fUST/lending_fUST_20250429
["ID","MTS","AMOUNT","RATE_DAILY","PERIOD"]
[359305381,1745902251425,-164.159493,0.00028973,7]
[359305382,1745902251434,-151.0,0.00028973,7]
[359305383,1745902251443,-435.09377,0.00028973,7]
[359305384,1745902251453,-435.09377,0.00028973,7]
[359305386,1745902251462,-295.035398,0.00028973,7]
[359305387,1745902251471,-177.003207,0.00028973,7]
[359305388,1745902251480,-295.035398,0.00028973,7]
[359305389,1745902251489,-1254.82481,0.00028973,2]
[359305390,1745902251498,-177.003207,0.00028973,7]
[359305391,1745902251511,-1254.82481,0.00028973,2]
[359305392,1745902251667,-180.282063,0.00028973,7]
[359305393,1745902251677,-169.481529,0.00028973,7]
[359305394,1745902251687,-169.481536,0.00028973,7]
[359305395,1745902251697,-151.0,0.0002898,7]
[359305396,1745902251706,-151.0,0.0002898,7]
[359305397,1745902251715,-151.0,0.0002898,7]
[359305398,1745902251725,-151.0,0.0002899,7]
[359305399,1745902251734,-151.0,0.0002899,7]
[359305400,1745902251744,-151.0,0.0002899,7]
[359305401,1745902251754,-151.0,0.0002899,7]
[359305402,1745902251763,-194.720639,0.0002899,7]
[359305403,1745902251773,-151.0,0.0002899,7]
[359305404,1745902251783,-242.191088,0.0002899,7]
[359305405,1745902251793,-242.191088,0.0002899,7]
[359305406,1745902251802,-500.0,0.0002899,7]
[359305407,1745902251812,-500.0,0.0002899,7]
[359305408,1745902251821,-151.0,0.0002899,7]
[359305409,1745902251831,-164.159493,0.0002899,7]
[359305410,1745902251840,-164.159493,0.0002899,7]
[359305411,1745902251849,-151.0,0.0002899,7]
[359305412,1745902251858,-191.173577,0.0002899,7]
[359305413,1745902251867,-435.09377,0.0002899,7]
[359305414,1745902251876,-191.173577,0.0002899,7]
[359305415,1745902251885,-435.09377,0.0002899,7]
[359305416,1745902251894,-295.035398,0.0002899,7]
[359305417,1745902251904,-177.003207,0.0002899,7]
[359305419,1745902251913,-295.035398,0.0002899,7]
[359305420,1745902251922,-1254.82481,0.0002899,2]
[359305421,1745902251931,-177.003207,0.0002899,7]
[359305422,1745902251940,-1254.82481,0.0002899,2]
[359305423,1745902251949,-9507.07484348,0.00029,7]
[359305424,1745902251959,-9507.07484348,0.00029,7]
[359305425,1745902251967,-1326.71885211,0.00029,7]
[359305426,1745902251976,-1326.71885211,0.00029,7]
[359305427,1745902251985,-15455.71912846,0.00029,7]
[359305428,1745902251994,-15455.71912846,0.00029,7]
[359305429,1745902252003,-151.0,0.00029,7]
[359305430,1745902252017,-151.0,0.00029,7]
[359305431,1745902252037,-1006.16919102,0.00029,2]
[359305432,1745902252048,-151.0,0.00029,7]
[359305433,1745902252059,-151.0,0.00029,7]
[359305434,1745902252068,-151.0,0.00029,7]
[359305435,1745902252078,-151.0,0.00029,7]
[359305436,1745902252089,-151.0,0.00029,7]
[359305437,1745902252099,-151.0,0.00029,7]
[359305438,1745902252108,-151.0,0.00029,7]
[359305439,1745902252118,-151.0,0.00029,7]
[359305440,1745902252128,-152.964701,0.00029,7]
[359305441,1745902252138,-151.0,0.00029,7]
[359305442,1745902252148,-151.0,0.00029,7]
[359305443,1745902252158,-242.191088,0.00029,7]
[359305444,1745902252168,-242.191088,0.00029,7]
[359305445,1745902252179,-242.191088,0.00029,7]
[359305446,1745902252189,-242.191088,0.00029,7]
[359305447,1745902252199,-500.0,0.00029,7]
[359305448,1745902252208,-500.0,0.00029,7]
[359305449,1745902252218,-500.0,0.00029,7]
[359305450,1745902252228,-500.0,0.00029,7]
[359305451,1745902252237,-151.0,0.00029,7]
[359305452,1745902252247,-164.159493,0.00029,7]
[359305453,1745902252256,-164.159493,0.00029,7]
[359305454,1745902252266,-164.159493,0.00029,7]
[359305455,1745902252276,-164.159493,0.00029,7]
[359305456,1745902252285,-151.0,0.00029,7]
[359305457,1745902252295,-151.0,0.00029,7]
[359305458,1745902252305,-205.967721,0.00029,7]
[359305459,1745902252314,-191.173577,0.00029,7]
[359305460,1745902252324,-435.09377,0.00029,7]
[359305461,1745902252334,-435.09377,0.00029,7]
[359305462,1745902252345,-191.173573,0.00029,7]
[359305463,1745902252354,-435.09377,0.00029,7]
[359305464,1745902252364,-435.093769,0.00029,7]
[359305465,1745902252373,-295.035398,0.00029,7]
[359305466,1745902252383,-295.035398,0.00029,7]
[359305467,1745902252392,-177.003207,0.00029,7]
[359305468,1745902252403,-295.035398,0.00029,7]
[359305469,1745902252413,-177.003207,0.00029,7]
[359305470,1745902252423,-295.035405,0.00029,7]
[359305471,1745902252433,-1254.82481,0.00029,2]
[359305472,1745902252443,-1254.82481,0.00029,2]
[359305473,1745902252453,-177.003207,0.00029,7]
[359305474,1745902252463,-177.003207,0.00029,7]
[359305475,1745902252473,-1254.82481,0.00029,2]
[359305476,1745902252483,-1254.82481402,0.00029,2]
[359305477,1745902252494,-500.0,0.0002905,5]
[359305478,1745902252503,-500.0,0.0002905,5]
[359305479,1745902252513,-500.0,0.0002905,5]
[359305480,1745902252523,-500.0,0.00029125,5]
[359305481,1745902252533,-151.0,0.00029141,7]
[359305482,1745902252543,-179.026768,0.00029239,7]
[359305483,1745902252552,-160.0,0.00029248,2]
[359305484,1745902252562,-487.6,0.0002932,15]
[359305485,1745902252572,-3249.10582829,0.00029348,8]
[359305486,1745902252581,-251.24942033,0.00029374,2]
[359305487,1745902252591,-151.0,0.00029555,7]
[359305488,1745902252600,-151.0,0.0002959,7]
[359305489,1745902252609,-242.191088,0.0002959,7]
[359305490,1745902252619,-242.19109,0.0002959,7]
[359305491,1745902252633,-500.0,0.0002959,7]
[359305492,1745902252643,-500.0,0.0002959,7]
[359305493,1745902252654,-164.159493,0.0002959,7]
[359305494,1745902252665,-164.159499,0.0002959,7]
[359305495,1745902252675,-151.0,0.0002959,7]
[359305496,1745902252685,-177.003207,0.0002959,7]
[359305497,1745902252696,-177.00321,0.0002959,7]
[359305498,1745902252706,-5000.0,0.00029594,2]
[359305499,1745902252715,-600.0,0.00029616,5]
[359305500,1745902252725,-500.0,0.0002963,2]
[359305501,1745902252735,-151.0,0.0002976,7]
[359305502,1745902252746,-151.0,0.0002976,7]
[359305503,1745902252756,-20000.0,0.0002987,7]
[359305504,1745902252766,-3249.10582829,0.00029934,9]
[359305505,1745902252776,-176.374158,0.00029935,7]
[359305506,1745902252786,-151.0,0.00029969,7]
[359305507,1745902252796,-151.0,0.00029969,7]
[359305508,1745902252806,-9551.88690188,0.0003,2]
[359305509,1745902252817,-160.0,0.0003,32]
[359305510,1745902252827,-786.01537384,0.0003,120]
[359305511,1745902252837,-151.0,0.0003,2]
[359305512,1745902252848,-2200.0,0.00030038,2]
[359305513,1745902252859,-290.67304,0.000303,120]
[359305514,1745902252869,-1152.0,0.00030351,2]
[359305515,1745902252879,-3249.10582829,0.00030521,9]
[359305516,1745902252890,-151.0,0.00030796,7]
[359305517,1745902252901,-159.58848,0.000308,7]
[359305518,1745902252910,-160.0,0.00031,34]
[359305519,1745902252920,-151.0,0.000311,20]
[359305520,1745902252930,-3249.10582829,0.00031107,9]
[359305521,1745902252939,-577.57700563,0.0003126,5]
[359305523,1745902253218,-322.42299437,0.0003126,5]
[359305524,1745902253227,-500.0,0.00031272,7]
[359305526,1745902253237,-2750.49819992,0.00031376,2]
[359305527,1745902253248,-5004.27388497,0.00031376,2]
[359305528,1745902253258,-159.58848,0.00031496,2]
[359305529,1745902253267,-8695.89360286,0.00031581,2]
[359305530,1745902253286,-2269.50003987,0.00031581,2]
[359305531,1745902253298,-5864.54057079,0.00031581,2]
[359305532,1745902253307,-151.0,0.000316,19]
[359305533,1745902253318,-3249.10582829,0.00031693,10]
[359305534,1745902253327,-78.52154439,0.00031768,2]
[359305801,1745902432832,170.817198,0.00027397,120]
[359306172,1745902756679,200.11,0.00021,10]
[359306274,1745902867273,-300.0,0.00021612,2]
[359306275,1745902867298,-300.0,0.00021612,2]
[359306276,1745902867323,-160.0,0.00021613,2]
[359306277,1745902867345,-160.0,0.00021613,2]
[359306278,1745902867369,-160.0,0.00021613,2]
[359306279,1745902867394,-234.01220449,0.00021613,2]
[359306289,1745902874231,-164.87790339,0.00021613,2]
[359306291,1745902877724,-178.13892656,0.00021375,2]
[359306296,1745902880590,-157.006,0.00021375,2]
[359306302,1745902885052,-176.72829046,0.00021375,2]
[359306310,1745902891049,-254.75955636,0.00021375,2]
[359306317,1745902895631,-263.67939882,0.00021375,2]
[359306321,1745902900618,-152.98336857,0.00021375,2]
[359306333,1745902909303,-171.78858389,0.00021365,2]
[359306334,1745902909330,-328.21141611,0.00021375,2]
[359306340,1745902913543,-300.0,0.00021375,2]
[359306347,1745902919890,-492.53401286,0.00021375,2]
[359306353,1745902925164,-150.0,0.00021374,2]
[359306515,1745903094796,-252.95539516,0.00020763,2]
[359306649,1745903255122,-152.0,0.00020433,2]
[359306655,1745903263171,-644.220608,0.00020433,2]
[359306656,1745903263195,-56.54550344,0.00020763,2]
[359306680,1745903313498,986.49,0.0002739,30]
[359306794,1745903432490,-250.0,0.00020491,2]
[359306796,1745903432500,-160.0,0.00021371,2]
[359306798,1745903432509,-160.0,0.00021372,2]
[359306800,1745903432518,-300.0,0.00021372,2]
[359306802,1745903432527,-300.0,0.00021373,2]
[359306804,1745903432537,-280.10799,0.00021373,2]
[359306806,1745903432548,-19.89201,0.00021373,2]
[359306808,1745903432558,-300.0,0.00021373,2]
[359306810,1745903432567,-300.0,0.00021373,2]
[359306812,1745903432577,-1200.0,0.00021373,2]
[359306814,1745903432586,-160.0,0.00021373,2]
[359306816,1745903432595,-3144.80424634,0.00021375,2]
[359306818,1745903432606,-2583.98764962,0.00021375,2]
[359306820,1745903432617,-2750.0,0.00021375,2]
[359306822,1745903432629,-4450.0,0.00021375,2]
[359306824,1745903432644,-9667.1671343,0.00021375,2]
[359306826,1745903432654,-421.28334683,0.00021605,2]
[359306828,1745903432662,-12589.54207618,0.00021605,2]
[359306831,1745903432672,-840.73483787,0.00021606,2]
[359306834,1745903432680,-160.0,0.00021606,2]
[359306836,1745903432690,-3327.53149635,0.00021608,2]
[359306838,1745903432699,-157.5,0.00021609,2]
[359306840,1745903432708,-184.57450925,0.00021619,2]
[359306842,1745903432717,-1000.0,0.00021619,2]
[359306844,1745903432726,-250.0,0.00021619,2]
[359306846,1745903432735,-1410.45273729,0.00021619,2]
[359306848,1745903432745,-199.89525401,0.00021619,2]
[359306850,1745903432754,-3000.0,0.000219,2]
[359306852,1745903432763,-3884.493144,0.0002191,2]
[359306854,1745903432773,-531.55795686,0.0002246,2]
[359306856,1745903432782,-574.75421798,0.000226,2]
[359306858,1745903432790,-10000.0,0.00022868,2]
[359306860,1745903432800,-1538.34526537,0.000229,4]
[359306862,1745903432809,-371.0,0.00023239,2]
[359306864,1745903432819,-420.0,0.0002324,2]
[359306866,1745903432828,-403.0,0.00023319,2]
[359306868,1745903432838,-420.0,0.0002335,2]
[359306870,1745903432848,-1538.34526532,0.00023486,4]
[359306872,1745903432858,-456.78740933,0.00023712,2]
[359306874,1745903432871,-50.21892653,0.00023712,2]
[359306876,1745903432880,-500.0,0.00024,2]
[359306878,1745903432889,-500.0,0.00024,2]
[359306880,1745903432898,-500.0,0.00024,2]
[359306882,1745903432908,-500.0,0.00024,2]
[359306884,1745903432918,-500.0,0.00024,2]
[359306886,1745903432927,-1538.34526532,0.00024072,5]
[359306888,1745903432936,-1538.34526532,0.00024659,5]
[359306890,1745903432945,-3702.50158313,0.00024855,2]
[359306892,1745903432954,-3702.50158313,0.00024871,2]
[359306893,1745903432963,-500.0,0.00024873,2]
[359306895,1745903432972,-1695.82402155,0.00024875,2]
[359306898,1745903432985,-2006.67756158,0.00024875,2]
[359306900,1745903432994,-3702.50158313,0.00024895,2]
[359306902,1745903433004,-500.0,0.00025,2]
[359306904,1745903433013,-1538.34526532,0.00025245,5]
[359306906,1745903433023,-587.0,0.00025271,2]
[359306908,1745903433032,-1538.34526532,0.00025831,6]
[359306909,1745903433042,-500.0,0.00025933,2]
[359306911,1745903433052,-500.0,0.00025933,2]
[359306913,1745903433062,-500.0,0.00025933,2]
[359306915,1745903433071,-500.0,0.00025933,2]
[359306917,1745903433080,-500.0,0.00025933,2]
[359306919,1745903433090,-13669.4922601,0.00025953,2]
[359306921,1745903433100,-9786.31555437,0.0002609,2]
[359306923,1745903433110,-1990.78724677,0.0002609,2]
[359306925,1745903433119,-24403.01,0.000261,2]
[359306927,1745903433129,-314.31107799,0.00026256,2]
[359306929,1745903433139,-403.0,0.00026319,2]
[359306931,1745903433149,-1538.34526532,0.00026417,6]
[359306933,1745903433158,-500.0,0.0002659,2]
[359306934,1745903433168,-300.0,0.0002659,2]
[359306937,1745903433179,-500.0,0.0002659,2]
[359306939,1745903433189,-500.0,0.0002659,2]
[359306940,1745903433199,-313.35099139,0.00027,3]
[359306943,1745903433210,-500.0,0.00027,2]
[359306945,1745903433219,-1538.34526532,0.00027003,7]
[359306947,1745903433229,-1098.08248956,0.00027288,2]
[359306948,1745903433238,-1019.86381371,0.00027288,2]
[359306950,1745903433248,-500.0,0.00027388,2]
[359306952,1745903433258,-500.0,0.00027388,2]
[359306954,1745903433267,-500.0,0.00027388,2]
[359306956,1745903433276,-500.0,0.00027388,2]
[359306958,1745903433287,-954.58162765,0.00027388,2]
[359306960,1745903433297,-500.0,0.00027388,2]
[359306962,1745903433306,-500.0,0.00027388,2]
[359306964,1745903433316,-500.0,0.00027388,2]
[359306966,1745903433325,-500.0,0.00027388,2]
[359306968,1745903433335,-500.0,0.00027388,2]
[359306970,1745903433345,-500.0,0.00027388,2]
[359306971,1745903433356,-500.0,0.00027388,2]
[359306972,1745903433365,-954.58162765,0.00027388,2]
[359306973,1745903433375,-500.0,0.00027388,2]
[359306974,1745903433385,-500.0,0.00027388,2]
[359306975,1745903433395,-954.58162765,0.00027388,2]
[359306976,1745903433406,-500.0,0.00027388,2]
[359306977,1745903433416,-277.26453011,0.00027388,2]
[359306979,1745903433426,-500.0,0.00027388,2]
[359306981,1745903433437,-500.0,0.00027388,2]
[359306983,1745903433446,-954.58162765,0.00027388,2]
[359306985,1745903433456,-500.0,0.00027388,2]
[359306987,1745903433466,-500.0,0.00027388,2]
[359306988,1745903433475,-500.0,0.00027388,2]
[359306990,1745903433486,-509.0865286,0.00027388,2]
[359306992,1745903433495,-954.58162765,0.00027388,2]
[359306994,1745903433505,-500.0,0.00027388,2]
[359306996,1745903433515,-500.0,0.00027388,2]
[359306998,1745903433524,-954.58162765,0.00027388,2]
[359307000,1745903433535,-500.0,0.00027388,2]
[359307002,1745903433544,-500.0,0.00027388,2]
[359307004,1745903433554,-500.0,0.00027388,2]
[359307005,1745903433564,-500.0,0.00027388,2]
[359307006,1745903433574,-954.58162765,0.00027388,2]
[359307007,1745903433583,-954.58162765,0.00027388,2]
[359307008,1745903433592,-500.0,0.00027388,2]
[359307009,1745903433602,-954.58162765,0.00027388,2]
[359307010,1745903433611,-554.80308451,0.00027388,2]
[359307011,1745903433621,-500.0,0.00027388,2]
[359307012,1745903433630,-954.58162765,0.00027388,2]
[359307013,1745903433639,-633.05529858,0.00027388,2]
[359307014,1745903433649,-954.58162765,0.00027388,2]
[359307015,1745903433658,-500.0,0.00027388,2]
[359307016,1745903433668,-954.58162765,0.00027388,2]
[359307017,1745903433677,-954.58162765,0.00027388,2]
[359307018,1745903433687,-954.58162765,0.00027388,2]
[359307019,1745903433696,-954.58162765,0.00027388,2]
[359307020,1745903433705,-954.58162765,0.00027388,2]
[359307021,1745903433715,-954.58162765,0.00027388,2]
[359307022,1745903433724,-954.58162765,0.00027388,2]
[359307023,1745903433734,-954.58162765,0.00027388,2]
[359307024,1745903433744,-954.58162765,0.00027388,2]
[359307025,1745903433754,-954.58162765,0.00027388,2]
[359307026,1745903433764,-954.58162765,0.00027388,2]
[359307027,1745903433773,-954.58162765,0.00027388,2]
[359307028,1745903433782,-954.58162765,0.00027388,2]
[359307029,1745903433791,-954.58162765,0.00027388,2]
[359307030,1745903433801,-954.58162765,0.00027388,2]
[359307031,1745903433811,-954.58162765,0.00027388,2]
[359307032,1745903433820,-954.58162765,0.00027388,2]
[359307033,1745903433830,-954.58162765,0.00027388,2]
[359307034,1745903433839,-954.58162765,0.00027388,2]
[359307035,1745903433849,-954.58162765,0.00027388,2]
[359307036,1745903433858,-954.58162765,0.00027388,2]
[359307037,1745903433867,-954.58162765,0.00027388,2]
[359307038,1745903433877,-954.58162765,0.00027388,2]
[359307039,1745903433886,-954.58162765,0.00027388,2]
[359307040,1745903433896,-954.58162765,0.00027388,2]
[359307041,1745903433906,-954.58162765,0.00027388,2]
[359307042,1745903433915,-954.58162765,0.00027388,2]
[359307043,1745903433926,-954.58162765,0.00027388,2]
[359307044,1745903433936,-954.58162765,0.00027388,2]
[359307045,1745903433946,-954.58162765,0.00027388,2]
[359307046,1745903433955,-954.58162765,0.00027388,2]
[359307047,1745903433965,-954.58162765,0.00027388,2]
[359307048,1745903433975,-954.58162765,0.00027388,2]
[359307049,1745903433984,-954.58162765,0.00027388,2]
[359307050,1745903433993,-954.58162765,0.00027388,2]
[359307051,1745903434003,-954.58162765,0.00027388,2]
[359307052,1745903434013,-954.58162765,0.00027388,2]
[359307053,1745903434023,-2391.20413742,0.00027388,2]
[359307054,1745903434032,-2391.20413742,0.00027388,2]
[359307055,1745903434047,-2391.20413742,0.00027388,2]
[359307056,1745903434057,-2391.20413742,0.00027388,2]
[359307057,1745903434067,-2391.20413742,0.00027388,2]
[359307058,1745903434077,-2391.20413742,0.00027388,2]
[359307059,1745903434086,-2391.20413742,0.00027388,2]
[359307060,1745903434096,-2391.20413742,0.00027388,2]
[359307061,1745903434106,-2391.20413742,0.00027388,2]
[359307062,1745903434115,-2391.20413742,0.00027388,2]
[359307063,1745903434125,-2391.20413742,0.00027388,2]
[359307064,1745903434134,-2391.20413742,0.00027388,2]
[359307065,1745903434144,-2391.20413742,0.00027388,2]
[359307066,1745903434153,-2391.20413742,0.00027388,2]
[359307067,1745903434163,-2391.20413742,0.00027388,2]
[359307068,1745903434173,-2391.20413742,0.00027388,2]
[359307069,1745903434183,-2391.20413742,0.00027388,2]
[359307070,1745903434192,-2391.20413742,0.00027388,2]
[359307071,1745903434202,-2391.20413742,0.00027388,2]
[359307072,1745903434211,-2391.20413742,0.00027388,2]
[359307073,1745903434221,-2391.20413742,0.00027388,2]
[359307074,1745903434230,-2391.20413742,0.00027388,2]
[359307075,1745903434240,-2391.20413742,0.00027388,2]
[359307076,1745903434249,-2391.20413742,0.00027388,2]
[359307077,1745903434259,-2391.20413742,0.00027388,2]
[359307078,1745903434268,-2391.20413742,0.00027388,2]
[359307079,1745903434278,-2391.20413742,0.00027388,2]
[359307080,1745903434288,-2391.20413742,0.00027388,2]
[359307081,1745903434298,-2347.72769857,0.00027388,2]
[359307082,1745903434307,-2347.72769857,0.00027388,2]
[359307083,1745903434317,-2347.72769857,0.00027388,2]
[359307084,1745903434326,-2347.72769857,0.00027388,2]
[359307085,1745903434335,-2347.72769857,0.00027388,2]
[359307086,1745903434345,-2347.72769857,0.00027388,2]
[359307087,1745903434355,-2347.72769857,0.00027388,2]
[359307088,1745903434365,-2347.72769857,0.00027388,2]
[359307089,1745903434374,-2347.72769857,0.00027388,2]
[359307090,1745903434383,-2347.72769857,0.00027388,2]
[359307091,1745903434392,-29358.9466631,0.00027389,2]
[359307092,1745903434403,-5972.36174031,0.00027389,2]
[359307093,1745903434413,-204.06,0.00027389,3]
[359307094,1745903434423,-612.18,0.00027389,3]
[359307095,1745903434434,-151.0,0.00027389,7]
[359307096,1745903434444,-151.0,0.00027389,7]
[359307097,1745903434453,-19572.6311087,0.0002739,2]
[359307098,1745903434465,-3981.57449354,0.0002739,2]
[359307099,1745903434474,-151.0,0.00027399,7]
[359307100,1745903434483,-151.0,0.00027399,7]
[359307101,1745903434493,-151.0,0.00027399,7]
[359307102,1745903434503,-100000.0,0.000274,2]
[359307103,1745903434512,-151.0,0.000274,7]
[359307104,1745903434521,-151.0,0.000274,7]
[359307105,1745903434531,-154.1836,0.000274,7]
[359307106,1745903434540,-151.0,0.000274,2]
[359307107,1745903434550,-151.0,0.000274,7]
[359307108,1745903434560,-151.0,0.000274,7]
[359307109,1745903434570,-151.0,0.000274,7]
[359307110,1745903434579,-151.0,0.000274,7]
[359307111,1745903434588,-823.0,0.00027478,2]
[359307112,1745903434599,-1538.34526532,0.0002759,7]
[359307113,1745903434609,-483.552,0.0002759,17]
[359307114,1745903434619,-184.64054051,0.0002759,17]
[359307115,1745903434628,-179.85611511,0.00027924,2]
[359307116,1745903434637,-9786.31555437,0.0002809,2]
[359307117,1745903434646,-1990.78724677,0.0002809,2]
[359307118,1745903434655,-1737.4,0.000281,2]
[359307119,1745903434665,-1538.34526532,0.00028176,7]
[359307120,1745903434674,-600.0,0.00028234,5]
[359307121,1745903434684,-1098.08248956,0.00028727,2]
[359307122,1745903434693,-408.12,0.00028759,3]
[359307123,1745903434702,-1538.34526532,0.00028762,8]
[359307124,1745903434712,-500.0,0.00028773,5]
[359307125,1745903434722,-500.0,0.00028773,5]
[359307126,1745903434731,-500.0,0.00028773,5]
[359307127,1745903434741,-500.0,0.00028773,5]
[359307128,1745903434750,-500.66651835,0.00028773,3]
[359307129,1745903434760,-500.0,0.00028773,5]
[359307130,1745903434770,-500.0,0.00028773,5]
[359307131,1745903434779,-500.0,0.00028773,5]
[359307132,1745903434788,-500.0,0.00028773,5]
[359307133,1745903434797,-500.0,0.00028773,5]
[359307134,1745903434807,-500.0,0.00028773,5]
[359307135,1745903434816,-500.0,0.00028773,5]
[359307136,1745903434825,-500.93018312,0.00028773,5]
[359307137,1745903434834,-19572.6311087,0.0002879,2]
[359307138,1745903434843,-3981.57449354,0.0002879,2]
[359307139,1745903434854,-100000.0,0.000288,2]
[359307140,1745903434863,-203.219341,0.000288,7]
[359307141,1745903434872,-151.0,0.000288,7]
[359307142,1745903434882,-151.0,0.000288,7]
[359307143,1745903434892,-151.0,0.000288,7]
[359307144,1745903434901,-156.523534,0.000288,7]
[359307145,1745903434911,-151.0,0.000288,7]
[359307146,1745903434920,-2200.0,0.00028847,2]
[359307147,1745903434930,-500.0,0.00028967,5]
[359307148,1745903434939,-500.0,0.00028967,5]
[359307149,1745903434949,-500.0,0.00028973,5]
[359307150,1745903434958,-500.0,0.00028973,5]
[359307151,1745903434969,-29358.9466631,0.0002899,2]
[359307152,1745903434979,-5972.36174031,0.0002899,2]
[359307153,1745903434988,-3282.95748909,0.00029,7]
[359307154,1745903434998,-3282.95748909,0.00029,7]
[359307155,1745903435007,-47641.16457632,0.00029,7]
[359307156,1745903435022,-502.36624423,0.00029,7]
[359307157,1745903435034,-7704.502398,0.00029,7]
[359307158,1745903435044,-55848.03321855,0.00029,7]
[359307159,1745903435054,-160.0,0.00029,7]
[359307160,1745903435064,-151.0,0.00029,7]
[359307161,1745903435075,-151.0,0.00029,7]
[359307162,1745903435086,-203.219341,0.00029,7]
[359307163,1745903435096,-151.0,0.00029,7]
[359307164,1745903435105,-153.279016,0.00029,7]
[359307165,1745903435115,-151.0,0.00029,7]
[359307166,1745903435124,-421.28334683,0.00029,7]
[359307167,1745903435134,-237.078988,0.00029,7]
[359307168,1745903435143,-149.3428761,0.00029267,15]
[359307175,1745903438503,-160.0,0.00021371,2]
[359307176,1745903438513,-536.19968266,0.00027389,2]
[359307177,1745903438523,-162.10769706,0.00027389,2]
[359307178,1745903438532,-216.30720123,0.00027389,2]
[359307180,1745903438542,-165.18541906,0.00029267,15]
[359307183,1745903438561,-162.70458094,0.00029267,15]
[359307185,1745903438571,-403.0,0.00029319,2]
[359307187,1745903438580,-73.421258,0.00029348,8]
[359307188,1745903438593,-1464.92400732,0.00029348,8]
[359307189,1745903438602,-1000.0,0.00029479,5]
[359307190,1745903438612,-378.10672507,0.00029479,5]
[359307191,1745903438623,-621.89327493,0.00029479,5]
[359307192,1745903438633,-219.80486498,0.00029479,5]
[359307193,1745903438644,-780.19513502,0.00029479,5]
[359307194,1745903438653,-508.72862023,0.00029479,5]
[359307195,1745903438662,-300.0,0.00029878,5]
[359307196,1745903438671,-1152.0,0.00029879,2]
[359307197,1745903438680,-1538.34526532,0.00029934,9]
[359307198,1745903438690,-634.0,0.0003,2]
[359307199,1745903438699,-1098.08248956,0.00030167,2]
[359307200,1745903438709,-668.4710254,0.00030179,4]
[359307201,1745903438718,-1538.34526532,0.00030521,9]
[359307202,1745903438727,-203.219341,0.00030791,7]
[359307203,1745903438737,-151.0,0.00030791,7]
[359307204,1745903438746,-151.0,0.00030936,7]
[359307205,1745903438757,-1538.34526532,0.00031107,9]
[359307206,1745903438767,-500.0,0.00031169,5]
[359307207,1745903438777,-1000.0,0.00031413,5]
[359307208,1745903438787,-1000.0,0.00031413,5]
[359307209,1745903438797,-1000.0,0.00031413,5]
[359307210,1745903438806,-1098.08248956,0.00031606,2]
[359307211,1745903438816,-1538.34526532,0.00031693,10]
[359307212,1745903438825,-160.0,0.000317,37]
[359307213,1745903438835,-160.0,0.000317,37]
[359307214,1745903438845,-9786.31555437,0.00031855,2]
[359307215,1745903438855,-1990.78724677,0.00031855,2]
[359307216,1745903438871,-151.0,0.00031865,7]
[359307217,1745903438881,-500.0,0.00031873,5]
[359307218,1745903438890,-151.0,0.00031876,7]
[359307219,1745903438901,-151.0,0.00031876,7]
[359307220,1745903438910,-151.0,0.00031876,7]
[359307221,1745903438919,-151.0,0.00031877,7]
[359307222,1745903438928,-151.0,0.00031878,7]
[359307223,1745903438938,-154.436824,0.00031878,7]
[359307224,1745903438947,-151.0,0.0003188,7]
[359307225,1745903438956,-151.0,0.0003188,7]
[359307226,1745903438966,-3488.2491228,0.0003188,2]
[359307227,1745903438978,-985.13637237,0.0003188,2]
[359307304,1745903441103,-139.97892225,0.000273,2]
[359307306,1745903441114,-253.00448904,0.000273,2]
[359307309,1745903441129,-107.01658871,0.000273,2]